bitfinex-derivatives/quotes_SOLF0:USTF0_20260226
["timestamp","ask_amount","ask_price","bid_price","bid_amount"]
[1772130586801,3.21342878,84.73,84.695,10.626]
[1772130590209,3.71019415,84.753,84.702,3.55684531]
[1772130590899,3.21342878,84.75,84.702,3.55684531]
[1772130592010,3.21342878,84.75,84.719,10.6229]
[1772130593704,3.71019415,84.749,84.701,3.55684531]
[1772130593903,3.21342878,84.74,84.701,3.55684531]
[1772130594710,3.21342878,84.75,84.713,3.55684531]
[1772130596010,3.21342878,84.75,84.722,10.6225]
[1772130597815,3.71019415,84.769,84.728,10.6218]
[1772130598017,3.21342878,84.76,84.728,10.6218]
[1772130599619,3.21342878,84.75,84.71,3.55684531]
[1772130599819,6.92362293,84.75,84.71,3.55684531]
[1772130600216,3.71019415,84.749,84.71,3.55684531]
[1772130600422,3.21342878,84.73,84.691,3.55684531]
[1772130600818,3.21342878,84.74,84.691,3.55684531]
[1772130601827,6.92362293,84.74,84.701,10.6252]
[1772130602222,3.21342878,84.73,84.701,10.6252]
[1772130602825,3.21342878,84.72,84.691,3.55684531]
[1772130603126,3.71019415,84.729,84.691,3.55684531]
[1772130604024,3.21342878,84.74,84.699,3.55684531]
[1772130604524,3.71019415,84.747,84.699,3.55684531]
[1772130604827,3.21342878,84.76,84.712,3.55684531]
[1772130605022,3.21342878,84.77,84.712,3.55684531]
[1772130606028,6.92362293,84.77,84.726,10.622]
[1772130606230,6.92362293,84.77,84.724,3.55684531]
[1772130606429,3.21342878,84.78,84.739,10.6204]
[1772130606631,3.71019415,84.783,84.731,3.55684531]
[1772130607723,3.71019415,84.779,84.737,10.6206]
[1772130608521,3.71019415,84.779,84.744,10.6197]
[1772130609225,3.20552001,84.79,84.751,3.55684531]
[1772130609430,3.20552001,84.8,84.751,3.55684531]
[1772130609929,21.2135,84.85,84.69,165.302]
[1772130609930,3.82339807,84.779,84.735,3.66409438]
[1772130610130,3.82339807,84.779,84.741,3.66409438]
[1772130610333,3.82339807,84.795,84.741,3.66409438]
[1772130610528,3.82339807,84.795,84.756,10.6183]
[1772130613033,3.20552001,84.8,84.763,10.6174]
[1772130613235,3.82339807,84.799,84.756,3.66409438]
[1772130613830,3.82339807,84.799,84.759,10.6179]
[1772130614437,14.43639807,84.799,84.756,3.66409438]
[1772130614938,10.6134,84.796,84.756,3.66409438]
[1772130616036,14.43679807,84.796,84.756,3.66409438]
[1772130617134,14.43679807,84.796,84.757,10.6182]
[1772130617839,14.43679807,84.796,84.749,10.6191]
[1772130617840,3.82339807,84.789,84.749,10.6191]
[1772130618431,3.20552001,84.8,84.756,3.66409438]
[1772130618635,7.02891808,84.8,84.756,3.66409438]
[1772130619034,3.20552001,84.81,84.765,3.66409438]
[1772130619430,3.82339807,84.813,84.77,3.20552001]
[1772130619635,3.20552001,84.82,84.771,3.66409438]
[1772130620339,3.82339807,84.828,84.784,10.6147]
[1772130620739,3.82339807,84.828,84.784,14.27879438]
[1772130620943,3.82339807,84.844,84.791,3.66409438]
[1772130621137,3.82339807,84.844,84.801,3.66409438]
[1772130622744,3.82339807,84.844,84.802,10.6125]
[1772130622942,3.20552001,84.85,84.803,3.66409438]
[1772130623143,3.82339807,84.857,84.803,3.66409438]
[1772130623740,3.82339807,84.857,84.813,3.66409438]
[1772130624240,3.20552001,84.86,84.818,3.66409438]
[1772130624444,7.02891808,84.87,84.818,3.66409438]
[1772130624746,7.02891808,84.87,84.821,3.66409438]
[1772130625143,7.02891808,84.87,84.829,10.6092]
[1772130625944,3.82339807,84.87,84.829,10.6092]
[1772130626144,7.02891808,84.87,84.829,10.6092]
[1772130626340,3.82339807,84.859,84.81,3.20552001]
[1772130626547,3.20552001,84.84,84.793,3.66409438]
[1772130626743,3.20552001,84.85,84.801,3.66409438]
[1772130626943,3.20552001,84.87,84.825,3.66409438]
[1772130627246,7.02891808,84.87,84.825,3.66409438]
[1772130628146,14.27500545,84.939,84.785,21.2293]
[1772130628147,3.82339807,84.869,84.813,3.66409438]
[1772130628342,3.20552001,84.86,84.813,3.66409438]
[1772130628657,3.82339807,84.869,84.832,10.6088]
[1772130629543,3.20552001,84.88,84.84,10.6078]
[1772130630550,3.20552001,84.88,84.841,3.66409438]
[1772130632757,3.82339807,84.883,84.841,3.66409438]
[1772130632951,3.20552001,84.88,84.841,3.66409438]
[1772130633256,3.82339807,84.879,84.832,10.6088]
[1772130633454,3.20552001,84.87,84.828,3.66409438]
[1772130633652,10.6033,84.877,84.828,3.66409438]
[1772130633850,3.20552001,84.87,84.828,3.66409438]
[1772130634055,3.20552001,84.88,84.828,3.66409438]
[1772130634256,3.20552001,84.89,84.844,3.66409438]
[1772130634457,3.82339807,84.898,84.844,3.66409438]
[1772130634853,3.20552001,84.89,84.844,3.66409438]
[1772130635750,3.20552001,84.91,84.865,3.85280609]
[1772130636261,3.61600102,84.916,84.879,10.6029]
[1772130636457,3.61600102,84.916,84.865,3.85280609]
[1772130637259,3.61600102,84.916,84.878,10.603]
[1772130637460,3.20552001,84.92,84.871,3.85280609]
[1772130638156,3.20552001,84.93,84.888,3.85280609]
[1772130638360,3.20552001,84.94,84.891,3.85280609]
[1772130639062,3.20552001,84.94,84.892,3.85280609]
[1772130639360,6.82152103,84.93,84.871,3.85280609]
[1772130639662,3.20552001,84.91,84.857,3.79137123]
[1772130639853,3.20552001,84.91,84.861,3.79137123]
[1772130640056,7.10455919,84.9,84.85,3.20552001]
[1772130640264,3.20552001,84.88,84.831,3.79137123]
[1772130640562,3.20552001,84.87,84.831,3.79137123]
[1772130640864,3.20552001,84.87,84.824,10.6098]
[1772130641157,3.20552001,84.87,84.824,3.79137123]
[1772130641362,3.89903918,84.88,84.824,3.79137123]
[1772130642455,3.89903918,84.871,84.81,3.79137123]
[1772130644966,14.50333918,84.869,84.823,10.6098]
[1772130645166,3.89903918,84.868,84.823,10.6098]
[1772130646168,10.6032,84.878,84.829,3.79137123]
[1772130646867,14.50223918,84.878,84.829,3.79137123]
[1772130647169,3.89903918,84.878,84.829,3.79137123]
[1772130648969,3.89903918,84.878,84.838,10.608]
[1772130650675,10.6044,84.868,84.829,3.79137123]
[1772130650875,3.89903918,84.878,84.829,3.79137123]
[1772130651866,3.89903918,84.876,84.829,3.79137123]
[1772130652073,3.89903918,84.891,84.829,3.79137123]
[1772130652570,3.89903918,84.929,84.851,3.79137123]
[1772130653975,3.89903918,84.914,84.868,10.6043]
[1772130654668,3.89903918,84.914,84.864,3.79137123]
[1772130654669,3.89903918,84.914,84.875,10.6034]
[1772130654873,8.56930601,84.93,84.876,3.79137123]
[1772130655068,3.89903918,84.932,84.876,3.79137123]
[1772130655269,3.89903918,84.932,84.886,14.39337123]
[1772130655573,3.89903918,84.932,84.86,8.56930601]
[1772130655574,3.89903918,84.932,84.868,3.79137123]
[1772130656074,3.89903918,84.923,84.869,10.6042]
[1772130656972,3.89903918,84.918,84.869,10.6042]
[1772130657177,3.89903918,84.918,84.841,3.79137123]
[1772130657572,3.89903918,84.885,84.811,3.79137123]
[1772130657878,3.89903918,84.885,84.828,3.79137123]
[1772130658081,3.89903918,84.883,84.828,3.79137123]
[1772130659277,3.89903918,84.883,84.837,10.6082]
[1772130660078,3.89903918,84.883,84.828,14.40057123]
[1772130660275,3.89903918,84.883,84.828,3.79137123]
[1772130660578,3.89903918,84.873,84.828,3.79137123]
[1772130660875,3.89903918,84.873,84.818,10.6106]
[1772130661072,3.89903918,84.861,84.815,3.79137123]
[1772130661274,3.89903918,84.876,84.815,3.79137123]
[1772130662275,10.6044,84.868,84.824,10.6098]
[1772130662481,3.89903918,84.867,84.815,3.79137123]
[1772130663478,14.50513918,84.855,84.805,10.6122]
[1772130663775,3.89903918,84.854,84.805,10.6122]
[1772130664876,3.89903918,84.854,84.812,10.6113]
[1772130665280,3.89903918,84.854,84.819,10.6104]
[1772130665681,10.6044,84.868,84.819,10.6104]
[1772130665984,3.89903918,84.871,84.826,10.6095]
[1772130667384,3.89903918,84.871,84.833,10.6087]
[1772130669183,3.89903918,84.871,84.825,10.6097]
[1772130672490,3.85889422,84.868,84.819,3.79137123]
[1772130672984,3.85889422,84.856,84.807,3.88766047]
[1772130673181,3.85889422,84.856,84.781,3.88766047]
[1772130673696,10.606,84.855,84.817,10.6106]
[1772130673894,3.85889422,84.854,84.806,3.88766047]
[1772130674895,10.6063,84.853,84.81,10.6115]
[1772130675100,10.6063,84.853,84.806,3.88766047]
[1772130675290,3.85889422,84.874,84.806,3.88766047]
[1772130675990,14.46329422,84.868,84.822,10.61]
[1772130676188,3.85889422,84.867,84.822,10.61]
[1772130676392,3.85889422,84.867,84.806,3.88766047]
[1772130677995,3.85889422,84.865,84.82,10.6102]
[1772130678497,3.85889422,84.865,84.806,3.88766047]
[1772130678698,3.85889422,84.889,84.824,3.88766047]
[1772130679399,3.85889422,84.889,84.839,3.88766047]
[1772130682104,3.85889422,84.888,84.846,10.607]
[1772130682909,10.602,84.887,84.846,10.607]
[1772130683095,14.46089422,84.887,84.846,10.607]
[1772130683403,3.85889422,84.886,84.839,10.6079]
[1772130684206,3.85889422,84.877,84.839,10.6079]
[1772130684706,3.85889422,84.877,84.832,10.6088]
[1772130685205,14.46219422,84.876,84.832,10.6088]
[1772130686104,3.85889422,84.875,84.832,10.6088]
[1772130686406,3.85889422,84.864,84.822,10.61]
[1772130686706,3.85889422,84.864,84.81,3.88766047]
[1772130687400,3.85889422,84.862,84.81,3.88766047]
[1772130687907,3.85889422,84.847,84.805,10.6121]
[1772130688502,3.85889422,84.847,84.798,10.6131]
[1772130689699,3.85889422,84.847,84.804,3.88766047]
[1772130690510,3.85889422,84.829,84.763,3.88766047]
[1772130690900,3.85889422,84.829,84.74,8.56889864]
[1772130690901,3.85889422,84.829,84.785,10.6146]
[1772130691209,3.85889422,84.829,84.78,3.88766047]
[1772130691607,3.85889422,84.827,84.781,10.6152]
[1772130691806,3.85889422,84.827,84.78,3.88766047]
[1772130692612,3.85889422,84.827,84.788,10.6143]
[1772130693604,3.85889422,84.827,84.78,14.50286047]
[1772130693798,3.85889422,84.827,84.765,3.88766047]
[1772130694899,10.6107,84.818,84.768,3.88766047]
[1772130695908,10.6107,84.818,84.769,10.6167]
[1772130697006,3.56807147,84.824,84.768,3.88766047]
[1772130697514,3.56807147,84.84,84.791,10.6138]
[1772130699012,10.608,84.839,84.791,10.6138]
[1772130699513,14.17607147,84.839,84.791,10.6138]
[1772130700109,3.89507947,84.838,84.791,10.6138]
[1772130700815,10.91978054,84.873,84.739,288.15525143]
[1772130700816,3.89507947,84.829,84.741,3.56343753]
[1772130701620,3.89507947,84.829,84.774,3.56343753]
[1772130701813,3.89507947,84.829,84.742,3.56343753]
[1772130703020,3.89507947,84.813,84.771,10.6164]
[1772130703214,3.89507947,84.813,84.759,3.56343753]
[1772130703517,10.6114,84.812,84.767,10.6169]
[1772130703717,3.89507947,84.811,84.767,10.6169]
[1772130704416,10.612,84.807,84.767,10.6169]
[1772130704615,3.89507947,84.806,84.744,3.56343753]
[1772130706017,3.89507947,84.794,84.744,3.56343753]
[1772130706622,3.89507947,84.794,84.762,10.6175]
[1772130707311,3.89507947,84.794,84.768,10.6168]
[1772130707507,8.56889864,84.82,84.768,10.6168]
[1772130707508,3.89507947,84.811,84.768,10.6168]
[1772130709020,14.50687947,84.809,84.768,10.6168]
[1772130709221,3.89507947,84.808,84.768,10.6168]
[1772130709811,3.89507947,84.808,84.775,10.6159]
[1772130710916,3.89507947,84.799,84.726,3.56343753]
[1772130711116,3.89507947,84.779,84.703,3.56343753]
[1772130711320,3.89507947,84.779,84.734,10.621]
[1772130711515,3.89507947,84.779,84.726,3.56343753]
[1772130711721,3.89507947,84.799,84.726,3.56343753]
[1772130712020,3.89507947,84.797,84.746,10.6196]
[1772130712224,3.89507947,84.797,84.741,3.56343753]
[1772130713525,14.50847947,84.796,84.75,10.6191]
[1772130713720,3.89507947,84.796,84.75,10.6191]
[1772130714023,3.89507947,84.796,84.741,3.56343753]
[1772130715022,3.89507947,84.796,84.757,10.6182]
[1772130716326,3.89507947,84.796,84.741,3.56343753]
[1772130718028,3.89507947,84.796,84.756,10.6183]
[1772130720533,3.89507947,84.796,84.741,3.56343753]
[1772130722337,7.10010723,84.81,84.761,10.6176]
[1772130722535,3.20502776,84.82,84.77,3.20502776]
[1772130722727,3.89507947,84.828,84.781,3.56343753]
[1772130722926,10.90026488,84.872,84.781,3.56343753]
[1772130722927,7.10010723,84.84,84.781,3.56343753]
[1772130723127,3.20502776,84.85,84.801,3.56343753]
[1772130723328,3.89507947,84.849,84.801,3.56343753]
[1772130724839,3.89507947,84.841,84.787,10.6144]
[1772130725432,3.89507947,84.841,84.794,10.6135]
[1772130726335,3.89507947,84.841,84.798,10.6131]
[1772130726640,3.89507947,84.841,84.795,3.56343753]
[1772130727135,3.89507947,84.841,84.795,14.17683753]
[1772130727640,3.89507947,84.856,84.812,3.56343753]
[1772130728136,3.89507947,84.871,84.812,3.56343753]
[1772130728336,3.89507947,84.886,84.812,3.56343753]
[1772130728836,3.89507947,84.886,84.838,10.6081]
[1772130729538,3.89507947,84.886,84.83,10.609]
[1772130729933,3.89507947,84.886,84.83,14.50699391]
[1772130730934,3.64546755,84.875,84.821,10.6101]
[1772130731340,3.64546755,84.875,84.815,3.89799391]
[1772130731541,10.6021,84.886,84.836,10.6083]
[1772130731841,3.64546755,84.889,84.837,3.89799391]
[1772130733043,14.24766755,84.886,84.838,10.608]
[1772130733342,14.24766755,84.886,84.837,3.89799391]
[1772130733343,3.64546755,84.886,84.837,3.89799391]
[1772130734042,10.601,84.895,84.837,3.89799391]
[1772130734538,3.64546755,84.9,84.837,3.89799391]
[1772130735144,3.64546755,84.888,84.838,10.608]
[1772130735542,3.64546755,84.888,84.842,10.6075]
[1772130736138,3.64546755,84.905,84.839,3.89799391]
[1772130736644,10.5986,84.915,84.866,3.89799391]
[1772130738943,10.5986,84.915,84.867,10.6044]
[1772130739341,10.5986,84.915,84.83,8.5660536]
[1772130739342,3.64546755,84.911,84.85,3.89799391]
[1772130739546,3.64546755,84.909,84.85,3.89799391]
[1772130739944,3.64546755,84.896,84.831,3.89799391]
[1772130740745,3.64546755,84.896,84.845,3.89799391]
[1772130741348,3.64546755,84.912,84.845,3.89799391]
[1772130742747,10.5998,84.904,84.845,3.89799391]
[1772130742953,3.64546755,84.903,84.845,3.89799391]
[1772130743846,3.64546755,84.899,84.828,3.89799391]
[1772130744853,10.6022,84.885,84.841,10.6077]
[1772130745048,3.64546755,84.929,84.842,3.89799391]
[1772130745248,3.64546755,84.909,84.842,3.89799391]
[1772130746460,3.64546755,84.929,84.842,3.89799391]
[1772130746655,3.64546755,84.929,84.851,3.89799391]
[1772130747057,3.64546755,84.929,84.885,10.6021]
[1772130748660,3.64546755,84.957,84.873,3.89799391]
[1772130749055,3.64546755,84.972,84.908,3.89799391]
[1772130750164,14.23686755,84.972,84.914,10.5986]
[1772130750365,3.64546755,84.971,84.914,10.5986]
[1772130750865,3.64546755,84.968,84.909,10.5992]
[1772130751463,3.64546755,84.965,84.909,10.5992]
[1772130752365,3.64546755,84.961,84.909,10.5992]
[1772130752566,3.64546755,84.959,84.901,10.6002]
[1772130753962,3.64546755,84.958,84.901,10.6002]
[1772130754165,3.64546755,84.958,84.891,14.49939391]
[1772130754362,14.24066755,84.942,84.891,3.89799391]
[1772130754670,3.64546755,84.939,84.874,3.89799391]
[1772130755061,10.5969,84.928,84.874,3.89799391]
[1772130755658,3.83270063,84.927,84.874,3.89799391]
[1772130755862,3.83270063,84.927,84.881,10.6026]
[1772130756065,3.83270063,84.944,84.874,3.89799391]
[1772130756669,3.83270063,84.944,84.85,29.7791536]
[1772130756670,3.83270063,84.944,84.89,3.596454]
[1772130757364,3.83270063,84.96,84.905,3.596454]
[1772130757968,3.83270063,84.96,84.917,10.5982]
[1772130759067,3.83270063,84.96,84.909,10.5992]
[1772130759970,10.593,84.959,84.909,10.5992]
[1772130762967,10.593,84.959,84.909,14.42762611]
[1772130764969,10.593,84.959,84.91,3.82842611]
[1772130765274,3.83270063,84.96,84.914,10.5985]
[1772130765574,3.83270063,84.96,84.91,3.82842611]
[1772130766971,3.83270063,84.96,84.92,10.5978]
[1772130768471,10.5909,84.976,84.928,3.82842611]
[1772130769675,10.5909,84.976,84.93,14.42492611]
[1772130770380,3.81347267,84.975,84.922,10.5976]
[1772130771979,10.5925,84.963,84.922,10.5976]
[1772130772473,14.48038542,85.01,84.88,8.5660536]
[1772130772474,10.5939,84.952,84.899,3.82842611]
[1772130772678,3.81347267,84.962,84.899,3.82842611]
[1772130773076,14.40807267,84.947,84.899,3.82842611]
[1772130773276,3.81347267,84.946,84.899,3.82842611]
[1772130773679,3.81347267,84.946,84.836,165.0174]
[1772130773680,3.81347267,84.989,84.909,3.82842611]
[1772130774175,3.81347267,84.973,84.92,10.5978]
[1772130774776,3.81347267,84.973,84.929,10.5967]
[1772130775077,3.81347267,84.973,84.929,14.42512611]
[1772130776779,3.81347267,84.999,84.943,14.42332611]
[1772130776977,3.81347267,84.999,84.943,3.82842611]
[1772130777173,3.81347267,84.999,84.882,3.82842611]
[1772130777378,2.04826971,85.015,84.922,3.82842611]
[1772130777379,3.81347267,85.006,84.922,3.82842611]
[1772130777674,3.81347267,84.999,84.922,3.82842611]
[1772130778079,3.81347267,84.996,84.936,3.82842611]
[1772130779083,3.81347267,84.994,84.936,3.82842611]
[1772130779780,3.81347267,84.991,84.936,3.82842611]
[1772130780677,3.81347267,84.991,84.941,3.82842611]
[1772130780876,3.81347267,85.015,84.941,3.82842611]
[1772130781077,21.16,85.064,84.941,3.82842611]
[1772130781078,10.82222151,85.025,84.941,3.82842611]
[1772130781286,10.82222151,85.025,84.91,8.5660536]
[1772130781287,3.81347267,85.033,84.974,3.82842611]
[1772130781478,3.81347267,85.029,84.958,3.82842611]
[1772130782380,3.81347267,85.009,84.958,3.82842611]
[1772130783180,3.81347267,85.009,84.959,10.5929]
[1772130783483,3.81347267,85.009,84.958,3.82842611]
[1772130784980,10.82222151,85.04,84.958,3.82842611]
[1772130785184,3.81347267,85.039,84.961,3.82842611]
[1772130785383,3.1866432,85.03,84.98,3.1866432]
[1772130785982,3.1866432,85.03,84.981,10.5901]
[1772130786184,3.1866432,85.02,84.981,10.5901]
[1772130786589,3.81347267,85.039,84.984,3.82842611]
[1772130786786,3.1866432,85.03,84.984,3.82842611]
[1772130786983,7.00011587,85.05,84.991,3.82842611]
[1772130787184,9.19545392,85.061,85.007,3.82842611]
[1772130787389,3.81347267,85.061,85.007,3.82842611]
[1772130787785,3.81347267,85.078,85.007,3.82842611]
[1772130787986,3.81347267,85.089,85.007,3.82842611]
[1772130788184,3.81347267,85.089,85.029,3.82842611]
[1772130789280,10.82222151,85.119,84.984,164.7317]
[1772130789281,9.18256774,85.107,85.05,3.82842611]
[1772130789590,3.81347267,85.126,85.051,3.82842611]
[1772130789785,3.79025812,85.148,85.093,10.5762]
[1772130789984,3.79025812,85.148,85.093,14.50180802]
[1772130790183,3.79025812,85.148,85.078,3.92560802]
[1772130790384,3.79025812,85.137,85.078,3.92560802]
[1772130791090,3.79025812,85.136,85.078,3.92560802]
[1772130791294,3.79025812,85.149,85.078,3.92560802]
[1772130791686,3.79025812,85.133,85.078,3.92560802]
[1772130791882,9.17521214,85.171,85.078,3.92560802]
[1772130792086,3.79025812,85.171,85.103,3.92560802]
[1772130792281,3.79025812,85.171,85.059,5.29169196]
[1772130792282,3.79025812,85.169,85.085,3.92560802]
[1772130792787,3.79025812,85.169,85.02,173.18606266]
[1772130792788,3.79025812,85.149,85.077,10.5783]
[1772130792987,3.79025812,85.149,85.07,3.92560802]
[1772130793187,3.79025812,85.139,85.07,3.92560802]
[1772130793586,3.79025812,85.139,85.05,8.52576266]
[1772130793587,3.79025812,85.139,85.073,3.92560802]
[1772130794393,3.79025812,85.139,85.084,3.92560802]
[1772130794592,3.79025812,85.149,85.084,3.92560802]
[1772130795994,3.79025812,85.149,85.088,3.92560802]
[1772130797500,27.78466515,85.172,85.091,3.92560802]
[1772130797501,3.79025812,85.171,85.091,3.92560802]
[1772130797703,3.79025812,85.169,85.091,3.92560802]
[1772130798004,3.79025812,85.149,85.09,3.92560802]
[1772130799901,3.79025812,85.149,85.091,14.50210802]
[1772130800105,3.79025812,85.149,85.091,3.92560802]
[1772130800599,3.79025812,85.145,85.078,10.5781]
[1772130800801,3.79025812,85.139,85.075,3.92560802]
[1772130801410,14.36095812,85.139,85.075,3.92560802]
[1772130801608,3.79025812,85.138,85.075,3.92560802]
[1772130801811,3.79025812,85.119,85.051,3.92560802]
[1772130802302,3.79025812,85.119,85.057,10.5808]
[1772130802713,3.79025812,85.117,85.051,3.92560802]
[1772130803207,3.79025812,85.117,85.03,3.92560802]
[1772130803414,3.79025812,85.089,85.03,3.92560802]
[1772130803804,3.79025812,85.105,85.051,3.92560802]
[1772130805906,3.79025812,85.105,85.052,3.92560802]
[1772130806117,3.79025812,85.105,85.036,3.92560802]
[1772130806418,3.79025812,85.123,85.036,3.92560802]
[1772130806918,3.79025812,85.122,85.059,3.92560802]
[1772130807618,3.79025812,85.122,85.062,3.92560802]
[1772130808219,3.79025812,85.142,85.075,3.92560802]
[1772130808710,3.79025812,85.142,85.087,10.577]
[1772130808910,3.79025812,85.119,85.031,3.92560802]
[1772130809314,10.5732,85.118,85.061,3.92560802]
[1772130809713,14.36345812,85.118,85.061,3.92560802]
[1772130809908,21.1313,85.179,85.014,21.1722]
[1772130809909,3.79025812,85.134,85.072,3.92560802]
[1772130811418,3.79025812,85.134,85.081,3.92560802]
[1772130813016,10.5715,85.132,85.081,3.92560802]
[1772130813219,3.79025812,85.131,85.081,3.92560802]
[1772130814417,3.79025812,85.131,85.063,3.92560802]
[1772130814613,3.79025812,85.129,85.063,3.92560802]
[1772130815510,3.59827304,85.123,85.065,3.85967661]
[1772130816311,3.59827304,85.123,85.066,14.43927661]
[1772130816510,3.59827304,85.14,85.067,3.85967661]
[1772130816820,3.59827304,85.129,85.053,3.85967661]
[1772130817120,3.59827304,85.109,85.021,3.85967661]
[1772130817321,3.59827304,85.109,85.036,3.85967661]
[1772130818524,3.59827304,85.109,85.04,3.85967661]
[1772130820011,3.65896382,85.102,85.049,10.5817]
[1772130820623,14.23456382,85.099,85.041,14.33556187]
[1772130820919,14.23456382,85.099,84.992,21.1775]
[1772130820920,3.65896382,85.089,85.011,3.75286187]
[1772130821223,14.23676382,85.081,85.03,10.584]
[1772130822214,10.5767,85.091,85.038,3.75286187]
[1772130822723,3.65896382,85.097,85.038,3.75286187]
[1772130823219,3.65896382,85.134,85.055,3.75286187]
[1772130823524,3.65896382,85.134,85.061,3.75286187]
[1772130824315,3.65896382,85.125,85.061,3.75286187]
[1772130824518,8.52576266,85.15,85.061,3.75286187]
[1772130824519,3.65896382,85.147,85.061,3.75286187]
[1772130824723,3.65896382,85.129,85.061,3.75286187]
[1772130825019,10.5733,85.118,85.068,10.5793]
[1772130825218,3.65896382,85.129,85.061,3.75286187]
[1772130825521,10.5736,85.115,85.061,3.75286187]
[1772130825723,3.65896382,85.129,85.061,3.75286187]
[1772130826115,3.65896382,85.129,85.087,10.577]
[1772130826316,3.65896382,85.158,85.081,3.75286187]
[1772130826516,3.65896382,85.149,85.081,3.75286187]
[1772130826713,10.5716,85.131,85.081,3.75286187]
[1772130827024,3.65896382,85.148,85.081,3.75286187]
[1772130827220,3.65896382,85.148,85.095,10.576]
[1772130827620,3.65896382,85.148,85.081,3.75286187]
[1772130827924,3.65896382,85.148,85.101,10.5753]
[1772130828120,3.65896382,85.148,85.081,3.75286187]
[1772130829025,3.65896382,85.146,85.081,3.75286187]
[1772130829423,3.65896382,85.144,85.064,3.75286187]
[1772130829727,3.65896382,85.126,85.064,3.75286187]
[1772130829923,3.65896382,85.126,85.001,164.6981]
[1772130829924,9.1594242,85.142,85.081,3.75286187]
[1772130830125,3.65896382,85.153,85.081,3.75286187]
[1772130830431,317.18140917,85.195,85.101,3.75286187]
[1772130830626,3.65896382,85.181,85.122,10.5727]
[1772130830827,31.44362897,85.172,85.122,10.5727]
[1772130831131,31.44362897,85.172,85.121,10.5728]
[1772130831822,6.515e-05,85.172,85.14,8.52576266]
[1772130832022,6.515e-05,85.172,85.141,3.75286187]
[1772130832221,2.04291891,85.235,85.161,3.75286187]
[1772130832417,21.72966352,85.245,85.161,3.75286187]
[1772130832630,21.72966352,85.245,85.181,3.75286187]
[1772130833129,21.72966352,85.245,85.163,3.75286187]
[1772130833726,10.83680612,85.26,85.163,3.75286187]
[1772130833926,10.88712244,85.295,85.179,5.28448133]
[1772130834122,8.52576266,85.27,85.179,5.28448133]
[1772130834420,16.69010614,85.239,85.158,11.54912045]
[1772130834620,16.69010614,85.239,85.15,8.54576266]
[1772130834822,16.69010614,85.239,85.17,8.52576266]
[1772130835022,16.69010614,85.269,85.188,10.5645]
[1772130835225,16.69010614,85.269,85.19,8.52576266]
[1772130835426,319.20946032,85.301,85.21,8.52576266]
[1772130835730,8.52576266,85.28,85.185,10.8364429]
[1772130835937,8.52576266,85.28,85.18,8.52576266]
[1772130836125,5.27889722,85.276,85.17,8.52576266]
[1772130836434,8.52576266,85.24,85.15,8.54576266]
[1772130836631,8.52576266,85.27,85.17,8.52576266]
[1772130837324,8.33085354,85.269,85.17,8.52576266]
[1772130837834,8.33085354,85.268,85.171,10.5666]
[1772130838728,2.04195394,85.278,85.15,8.54576266]
[1772130838729,8.32480001,85.241,85.15,8.54576266]
[1772130838934,8.32480001,85.241,85.17,8.52576266]
[1772130839931,8.32480001,85.241,85.186,10.5647]
[1772130840234,8.32480001,85.241,85.15,8.54576266]
[1772130842036,8.3809076,85.239,85.15,8.54576266]
[1772130842335,8.3809076,85.237,85.153,10.5687]
[1772130842537,8.52576266,85.26,85.15,0.02]
[1772130842538,8.3809076,85.229,85.15,0.02]
[1772130843436,8.34576174,85.209,85.15,0.02]
[1772130843835,8.34576174,85.189,85.15,0.02]
[1772130844042,8.34576174,85.186,85.09,8.52576266]
[1772130844536,8.34576174,85.186,85.114,10.5736]
[1772130844734,8.34576174,85.186,85.09,8.52576266]
[1772130845336,8.36133161,85.158,85.085,10.5772]
[1772130845735,8.36133161,85.158,85.08,8.52576266]
[1772130845941,8.36133161,85.158,85.097,10.5757]
[1772130846335,8.36133161,85.158,85.08,8.52576266]
[1772130846540,8.36133161,85.241,85.161,10.5677]
[1772130846737,8.36133161,85.241,85.17,8.52576266]
[1772130846932,8.36133161,85.241,85.15,8.52576266]
[1772130847432,8.36133161,85.241,85.17,8.52576266]
[1772130847739,8.36133161,85.241,85.15,19.36220556]
[1772130847941,8.36133161,85.241,85.17,8.52576266]
[1772130848135,8.36133161,85.241,85.15,8.52576266]
[1772130848532,8.37267776,85.239,85.177,10.5658]
[1772130849135,8.52576266,85.26,85.177,10.5658]
[1772130849136,8.34271159,85.237,85.177,10.5658]
[1772130849836,8.34271159,85.237,85.15,8.52576266]
[1772130850544,8.34234778,85.235,85.164,10.5674]
[1772130851135,8.34234778,85.233,85.164,10.5674]
[1772130852845,8.46388975,85.231,85.152,10.5689]
[1772130853031,8.46388975,85.229,85.152,10.5689]
[1772130853340,8.49600915,85.219,85.162,10.5677]
[1772130853539,8.49600915,85.219,85.15,8.49730274]
[1772130854644,8.49600915,85.219,85.161,10.5678]
[1772130855442,8.49600915,85.219,85.15,10.5692]